fUSD/lending_fUSD_20250622
["ID","MTS","AMOUNT","RATE_DAILY","PERIOD"]
[367011004,1750617963580,-1067.24,0.00041095,120]
[367011005,1750617963608,-561.3,0.00041095,120]
[367011006,1750617963638,-742.8,0.00041095,120]
[367011007,1750617963665,-660.73,0.00041095,120]
[367011008,1750617963691,-591.94,0.00041095,120]
[367011009,1750617963718,-490.0,0.00041095,120]
[367011010,1750617963746,-962.19,0.00041095,120]
[367011011,1750617963773,-633.18,0.00041095,120]
[367011012,1750617963801,-490.0,0.00041095,120]
[367011013,1750617963831,-1201.37,0.00041095,120]
[367011014,1750617963860,-735.31,0.00041095,120]
[367011015,1750617964099,-812.18,0.00041095,120]
[367011016,1750617964128,-2268.08,0.00041095,120]
[367011017,1750617964157,-693.63,0.00041095,120]
[367011018,1750617964184,-546.21,0.00041095,120]
[367011019,1750617964212,-537.6,0.00041095,120]
[367011020,1750617964239,-2017.34,0.00041095,120]
[367011021,1750617964267,-681.23,0.00041095,120]
[367011022,1750617964296,-1033.09,0.00041095,120]
[367011023,1750617964324,-2395.42,0.00041095,120]
[367011024,1750617964351,-1957.08,0.00041095,120]
[367011025,1750617964381,-2331.73,0.00041095,120]
[367011026,1750617964409,-758.38,0.00041095,120]
[367011027,1750617964438,-1317.03,0.00041095,120]
[367011028,1750617964468,-656.12,0.00041095,120]
[367011029,1750617964746,-2192.5,0.00041095,120]
[367011030,1750617964776,-1552.82,0.00041095,120]
[367011031,1750617964805,-923.16,0.00041095,120]
[367011032,1750617964832,-690.54,0.00041095,120]
[367011033,1750617964858,-2557.79,0.00041095,120]
[367011034,1750617964887,-490.0,0.00041095,120]
[367011035,1750617964916,-1278.51,0.00041095,120]
[367011036,1750617964944,-882.36,0.00041095,120]
[367011037,1750617964971,-270.2215788,0.00041095,120]
[367011038,1750617965000,-2592.87,0.00041095,120]
[367011039,1750617965028,-1777.46,0.00041095,120]
[367011040,1750617965055,-1177.01,0.00041095,120]
[367011041,1750617965083,-2455.25,0.00041095,120]
[367011042,1750617965110,-2666.61,0.00041095,120]
[367011043,1750617965137,-684.45,0.00041095,120]
[367011044,1750617965164,-1917.93,0.00041095,120]
[367011045,1750617965191,-1987.58,0.00041095,120]
[367011046,1750617965218,-1090.39,0.00041095,120]
[367011047,1750617965245,-1011.01,0.00041095,120]
[367011048,1750617965271,-959.79,0.00041095,120]
[367011049,1750617965299,-1971.77,0.00041095,120]
[367011050,1750617965326,-559.39,0.00041095,120]
[367011051,1750617965353,-2043.31,0.00041095,120]
[367011052,1750617965380,-3560.68,0.00041095,120]
[367011053,1750617965406,-778.14,0.00041095,120]
[367011054,1750617965433,-1951.19,0.00041095,120]
[367011055,1750617965462,-517.24,0.00041095,120]
[367011056,1750617965492,-43775.74,0.00041095,120]
[367011057,1750617965523,-568.31,0.00041095,120]
[367011058,1750617965551,-958.05,0.00041095,120]
[367011059,1750617965578,-849.45,0.00041095,120]
[367011060,1750617965605,-4508.43,0.00041095,120]
[367011061,1750617965633,-490.0,0.00041095,120]
[367011062,1750617965660,-440.86,0.00041095,120]
[367011063,1750617965688,-1399.22,0.00041095,120]
[367011064,1750617965717,-1076.93,0.00041095,120]
[367011065,1750617965749,-2066.0,0.00041095,120]
[367011066,1750617965778,-1949.7,0.00041095,120]
[367011067,1750617965807,-2782.12,0.00041095,120]
[367011068,1750617965835,-7464.68,0.00041095,120]
[367011069,1750617965862,-2457.71,0.00041095,120]
[367011070,1750617965889,-490.0,0.00041095,120]
[367011071,1750617965917,-1706.53,0.00041095,120]
[367011072,1750617965944,-6181.58,0.00041095,120]
[367011073,1750617965971,-1601.48,0.00041095,120]
[367011074,1750617966003,-2307.89,0.00041095,120]
[367011075,1750617966031,-1118.09,0.00041095,120]
[367011076,1750617966058,-1746.71,0.00041095,120]
[367011077,1750617966085,-1923.45,0.00041095,120]
[367011078,1750617966112,-1348.09,0.00041095,120]
[367011079,1750617966141,-752.15,0.00041095,120]
[367011080,1750617966170,-1794.71,0.00041095,120]
[367011081,1750617966197,-512.65,0.00041095,120]
[367011082,1750617966225,-5010.1,0.00041095,120]
[367011083,1750617966258,-809.54,0.00041095,120]
[367011084,1750617966285,-898.63,0.00041095,120]
[367011085,1750617966313,-7975.51,0.00041095,120]
[367011086,1750617966340,-1178.89,0.00041095,120]
[367011087,1750617966367,-897.76,0.00041095,120]
[367011088,1750617966393,-2710.86,0.00041095,120]
[367011089,1750617966420,-846.69,0.00041095,120]
[367011090,1750617966447,-577.18,0.00041095,60]
[367011091,1750617966476,-5959.21,0.00041095,120]
[367011092,1750617966508,-908.68,0.00041095,120]
[367011093,1750617966537,-4458.72,0.00041095,120]
[367011094,1750617966564,-1462.23,0.00041095,120]
[367011095,1750617966592,-954.98,0.00041095,120]
[367011096,1750617966620,-11850.17,0.00041095,120]
[367011097,1750617966649,-1492.08,0.00041095,120]
[367011098,1750617966676,-2763.22,0.00041095,120]
[367011099,1750617966704,-1072.64,0.00041095,120]
[367011100,1750617966732,-1705.66,0.00041095,120]
[367011101,1750617966762,-779.86,0.00041095,120]
[367011102,1750617966788,-696.76,0.00041095,120]
[367011103,1750617966815,-961.18,0.00041095,120]
[367011104,1750617966841,-1581.01,0.00041095,120]
[367011105,1750617966868,-1646.99,0.00041095,120]
[367011106,1750617966896,-1550.89,0.00041095,120]
[367011107,1750617966923,-576.99,0.00041095,120]
[367011108,1750617966950,-2283.97,0.00041095,120]
[367011109,1750617966976,-14198.57,0.00041095,120]
[367011110,1750617967004,-4637.74,0.00041095,120]
[367011111,1750617967030,-970.19,0.00041095,120]
[367011112,1750617967056,-560.95,0.00041095,120]
[367011113,1750617967083,-4847.74,0.00041095,120]
[367011114,1750617967110,-1063.35,0.00041095,120]
[367011115,1750617967136,-2428.48,0.00041095,120]
[367011116,1750617967163,-768.07,0.00041095,120]
[367011117,1750617967191,-954.27,0.00041095,120]
[367011118,1750617967218,-703.02,0.00041095,120]
[367011119,1750617967246,-6960.96,0.00041095,120]
[367011120,1750617967277,-1532.64,0.00041095,120]
[367011121,1750617967305,-1105.74,0.00041095,120]
[367011122,1750617967333,-1991.16,0.00041095,120]
[367011123,1750617967360,-490.0,0.00041095,120]
[367011124,1750617967386,-1075.23,0.00041095,120]
[367011125,1750617967414,-2054.37,0.00041095,120]
[367011126,1750617967450,-2560.05,0.00041095,120]
[367011127,1750617967479,-678.01,0.00041095,120]
[367011128,1750617967509,-2122.82,0.00041095,120]
[367011129,1750617967542,-25675.05,0.00041095,120]
[367011130,1750617967574,-975.97,0.00041095,120]
[367011131,1750617967604,-1045.31,0.00041095,120]
[367011132,1750617967634,-1509.09,0.00041095,120]
[367011133,1750617967662,-6290.35,0.00041095,120]
[367011134,1750617967996,-11222.7,0.00041095,120]
[367011135,1750617968028,-2112.09,0.00041095,120]
[367011136,1750617968056,-628.35,0.00041095,120]
[367011137,1750617968083,-3776.22,0.00041095,120]
[367011138,1750617968111,-494.77,0.00041095,120]
[367011139,1750617968144,-1879.92,0.00041095,120]
[367011140,1750617968175,-9208.59,0.00041095,120]
[367011141,1750617968203,-18400.67,0.00041095,120]
[367011142,1750617968230,-1622.88,0.00041095,120]
[367011143,1750617968259,-3313.22,0.00041095,120]
[367011144,1750617968286,-502.26,0.00041095,120]
[367011145,1750617968313,-4811.56,0.00041095,120]
[367011146,1750617968339,-2146.04,0.00041095,120]
[367011147,1750617968367,-3991.78,0.00041095,120]
[367011148,1750617968395,-983.29,0.00041095,120]
[367011149,1750617968424,-625.24,0.00041095,120]
[367011150,1750617968454,-1583.51,0.00041095,120]
[367011151,1750617968486,-708.52,0.00041095,120]
[367011152,1750617968520,-780.49,0.00041095,120]
[367011153,1750617968549,-2109.18,0.00041095,120]
[367011154,1750617968577,-3737.71,0.00041095,120]
[367011155,1750617968606,-8881.3,0.00041095,120]
[367011156,1750617968634,-2795.56,0.00041095,120]
[367011157,1750617968661,-1172.57,0.00041095,120]
[367011158,1750617968689,-878.26,0.00041095,120]
[367011159,1750617968716,-1246.48,0.00041095,120]
[367011160,1750617968746,-5298.5,0.00041095,120]
[367011161,1750617968777,-2896.48,0.00041095,120]
[367011162,1750617968806,-3192.87,0.00041095,120]
[367011163,1750617968834,-1983.23,0.00041095,120]
[367011164,1750617968863,-2093.47,0.00041095,120]
[367011165,1750617968890,-1397.05,0.00041095,120]
[367011166,1750617968917,-2126.41,0.00041095,120]
[367011167,1750617968944,-3812.58,0.00041095,120]
[367011168,1750617968972,-4625.78,0.00041095,120]
[367011169,1750617968999,-2677.28,0.00041095,120]
[367011170,1750617969029,-1629.35,0.00041095,120]
[367011171,1750617969055,-1861.84,0.00041095,120]
[367011172,1750617969084,-2663.6,0.00041095,120]
[367011173,1750617969112,-2150.01,0.00041095,120]
[367011174,1750617969140,-1197.91,0.00041095,120]
[367011175,1750617969166,-972.09,0.00041095,120]
[367011176,1750617969194,-6626.56,0.00041095,120]
[367011177,1750617969221,-1267.42,0.00041095,120]
[367011178,1750617969249,-713.45,0.00041095,120]
[367011179,1750617969280,-2321.28,0.00041095,120]
[367011180,1750617969309,-1144.44,0.00041095,120]
[367011181,1750617969337,-4146.65,0.00041095,120]
[367011182,1750617969364,-7966.06,0.00041095,120]
[367011183,1750617969392,-500.0,0.00041095,120]
[367011184,1750617969421,-1591.1,0.00041095,120]
[367011185,1750617969450,-968.44,0.00041095,120]
[367011186,1750617969478,-727.36,0.00041095,120]
[367011187,1750617969508,-4366.32,0.00041095,120]
[367011188,1750617969538,-1831.05,0.00041095,120]
[367011189,1750617969566,-1977.55,0.00041095,120]
[367011190,1750617969593,-545.7,0.00041095,120]
[367011191,1750617969621,-3473.08,0.00041095,120]
[367011192,1750617969649,-3132.68,0.00041095,120]
[367011193,1750617969678,-1027.25,0.00041095,120]
[367011194,1750617969705,-923.9,0.00041095,120]
[367011195,1750617969734,-5587.44,0.00041095,120]
[367011196,1750617969763,-7482.71,0.00041095,120]
[367011197,1750617969792,-4295.09,0.00041095,120]
[367011198,1750617969820,-1079.03,0.00041095,120]
[367011199,1750617969850,-1522.3,0.00041095,30]
[367011200,1750617969879,-824.41,0.00041095,120]
[367011201,1750617969908,-14168.63,0.00041095,120]
[367011202,1750617969937,-759.01,0.00041095,120]
[367011203,1750617969965,-1225.16,0.00041095,120]
[367011204,1750617969993,-26673.17,0.00041095,120]
[367011205,1750617970021,-1754.05,0.00041095,120]
[367011206,1750617970048,-828.03,0.00041095,120]
[367011207,1750617970075,-1616.22,0.00041095,120]
[367011208,1750617970102,-4976.16,0.00041095,120]
[367011209,1750617970129,-490.0,0.00041095,120]
[367011210,1750617970156,-5441.65,0.00041095,120]
[367011211,1750617970183,-3208.85,0.00041095,120]
[367011212,1750617970208,-632.2,0.00041095,120]
[367011213,1750617970234,-9776.39,0.00041095,120]
[367011214,1750617970265,-1229.51,0.00041095,120]
[367011215,1750617970292,-564.6,0.00041095,120]
[367011216,1750617970318,-1314.71,0.00041095,120]
[367011217,1750617970344,-2826.41,0.00041095,120]
[367011218,1750617970372,-2420.06,0.00041095,120]
[367011219,1750617970399,-999.69,0.00041095,120]
[367011220,1750617970426,-832.19,0.00041095,120]
[367011221,1750617970455,-990.0,0.00041095,120]
[367011222,1750617970484,-614.72,0.00041095,120]
[367011223,1750617970514,-8662.88,0.00041095,120]
[367011224,1750617970545,-2051.6,0.00041095,120]
[367011225,1750617970572,-1684.67,0.00041095,120]
[367011226,1750617970600,-718.62,0.00041095,120]
[367011227,1750617970627,-1229.85,0.00041095,120]
[367011228,1750617970656,-1166.28,0.00041095,120]
[367011229,1750617970684,-1521.93,0.00041095,120]
[367011230,1750617970713,-1339.11,0.00041095,120]
[367011231,1750617970741,-3325.29,0.00041095,120]
[367011232,1750617970772,-2993.28,0.00041095,120]
[367011233,1750617970800,-2311.38,0.00041095,120]
[367011234,1750617970829,-3306.06,0.00041095,120]
[367011235,1750617970856,-3159.51,0.00041095,120]
[367011236,1750617970885,-891.11,0.00041095,120]
[367011237,1750617970914,-567.11,0.00041095,120]
[367011238,1750617970941,-4081.17,0.00041095,120]
[367011239,1750617971185,-1014.45,0.00041095,60]
[367011240,1750617971218,-2475.08,0.00041095,120]
[367011241,1750617971248,-1851.35,0.00041095,120]
[367011242,1750617971277,-1144.72,0.00041095,120]
[367011243,1750617971306,-19005.98,0.00041095,120]
[367011244,1750617971334,-2917.66,0.00041095,120]
[367011245,1750617971363,-490.0,0.00041095,120]
[367011246,1750617971392,-510.22,0.00041095,120]
[367011247,1750617971421,-1712.7,0.00041095,120]
[367011248,1750617971452,-2705.54,0.00041095,120]
[367011249,1750617971480,-3069.59,0.00041095,120]
[367011250,1750617971510,-4682.4,0.00041095,120]
[367011251,1750617971539,-778.0,0.00041095,120]
[367011252,1750617971568,-2706.12,0.00041095,120]
[367011253,1750617971597,-3867.17,0.00041095,120]
[367011254,1750617971626,-742.62,0.00041095,120]
[367011255,1750617971659,-829.85,0.00041095,120]
[367011256,1750617971688,-5823.66,0.00041095,120]
[367011257,1750617971717,-490.79,0.00041095,120]
[367011258,1750617971746,-717.26,0.00041095,120]
[367011259,1750617971778,-1565.38,0.00041095,120]
[367011260,1750617971807,-6163.92,0.00041095,120]
[367011261,1750617971836,-3771.65,0.00041095,120]
[367011262,1750617971866,-2514.48,0.00041095,120]
[367011263,1750617971893,-2422.18,0.00041095,120]
[367011264,1750617971920,-1720.94,0.00041095,120]
[367011265,1750617971947,-3851.86,0.00041095,120]
[367011266,1750617971976,-1669.85,0.00041095,120]
[367011267,1750617972004,-2199.48,0.00041095,120]
[367011268,1750617972035,-581.45,0.00041095,120]
[367011269,1750617972062,-1533.78,0.00041095,120]
[367011270,1750617972091,-2531.61,0.00041095,120]
[367011271,1750617972119,-1236.73,0.00041095,120]
[367011272,1750617972145,-899.19,0.00041095,120]
[367011273,1750617972174,-3110.13,0.00041095,120]
[367011274,1750617972203,-1676.95,0.00041095,120]
[367011275,1750617972231,-597.31,0.00041095,120]
[367011276,1750617972259,-742.73,0.00041095,120]
[367011277,1750617972286,-4224.82,0.00041095,120]
[367011278,1750617972314,-824.86,0.00041095,120]
[367011279,1750617972342,-951.93,0.00041095,120]
[367011280,1750617972369,-597.32,0.00041095,120]
[367011281,1750617972397,-3369.69,0.00041095,120]
[367011282,1750617972425,-1199.18,0.00041095,120]
[367011283,1750617972455,-8123.9,0.00041095,120]
[367011284,1750617972485,-5155.46,0.00041095,120]
[367011285,1750617972516,-984.09,0.00041095,120]
[367011286,1750617972544,-806.39,0.00041095,120]
[367011287,1750617972573,-855.43,0.00041095,120]
[367011288,1750617972600,-1415.25,0.00041095,120]
[367011289,1750617972629,-2967.79,0.00041095,120]
[367011290,1750617972656,-1050.32,0.00041095,120]
[367011291,1750617972684,-1517.34,0.00041095,120]
[367011292,1750617972712,-1950.75,0.00041095,120]
[367011293,1750617972740,-8263.59,0.00041095,120]
[367011294,1750617972767,-2191.68,0.00041095,120]
[367011295,1750617972795,-4043.96,0.00041095,120]
[367011296,1750617972823,-600.7,0.00041095,120]
[367011297,1750617972852,-1762.49,0.00041095,120]
[367011298,1750617972881,-1850.9,0.00041095,120]
[367011299,1750617972909,-2925.71,0.00041095,120]
[367011300,1750617972937,-754.5,0.00041095,120]
[367011301,1750617972965,-2846.09,0.00041095,120]
[367011302,1750617972991,-4000.0,0.00041096,30]
[367011303,1750617973019,-935.0,0.00041096,120]
[367011304,1750617973047,-373.60457047,0.00041096,120]
[367011305,1750617973074,-500.0,0.00041096,120]
[367011306,1750617973100,-943.0,0.00041096,120]
[367011307,1750617973127,-3000.0,0.000411,120]
[367011308,1750617973155,-151.0,0.000411,120]
[367011309,1750617973183,-769.6,0.000411,120]
[367011310,1750617973210,-935.0,0.00041123,120]
[367011311,1750617973238,-500.0,0.00041123,120]
[367011312,1750617973266,-943.0,0.00041123,120]
[367011313,1750617973292,-935.0,0.00041151,120]
[367011314,1750617973318,-500.0,0.00041151,120]
[367011315,1750617973344,-943.0,0.00041151,120]
[367011316,1750617973370,-935.0,0.00041178,120]
[367011317,1750617973397,-500.0,0.00041178,120]
[367011318,1750617973422,-943.0,0.00041178,120]
[367011319,1750617973452,-2987143.70235138,0.0004118,120]
[367011321,1750617987886,-612.55465899,0.00039999,31]
[367011322,1750617987917,-612.55465899,0.00039999,31]
[367011323,1750617987947,-612.55465899,0.00039999,31]
[367011324,1750617987976,-612.55465899,0.00039999,31]
[367011325,1750617988004,-612.55465899,0.00039999,31]
[367011326,1750617988033,-612.55465899,0.00039999,31]
[367011327,1750617988061,-612.55465899,0.00039999,31]
[367011328,1750617988089,-612.55465899,0.00039999,31]
[367011329,1750617988238,-152.0,0.00041041,31]
[367011330,1750617988266,-500.0,0.00041094,30]
[367011331,1750617988298,-500.0,0.00041094,30]
[367011332,1750617988328,-500.0,0.00041094,30]
[367011333,1750617988356,-500.0,0.00041094,30]
[367011334,1750617988384,-168.65185757,0.00041094,30]
[367011335,1750617988413,-500.0,0.00041094,30]
[367011336,1750617988442,-500.0,0.00041094,30]
[367011337,1750617988476,-500.0,0.00041094,30]
[367011338,1750617988508,-500.0,0.00041094,30]
[367011339,1750617988541,-500.0,0.00041094,30]
[367011340,1750617988569,-500.0,0.00041094,30]
[367011341,1750617988597,-500.0,0.00041094,30]
[367011342,1750617988628,-500.0,0.00041094,30]
[367011343,1750617988660,-500.0,0.00041094,30]
[367011344,1750617988689,-500.0,0.00041094,30]
[367011345,1750617988718,-1698.23,0.00041095,120]
[367011346,1750617988746,-2653.18,0.00041095,120]
[367011347,1750617988774,-1492.62,0.00041095,120]
[367011348,1750617988804,-2511.06,0.00041095,120]
[367011349,1750617988831,-1103.85,0.00041095,120]
[367011350,1750617988859,-11566.07,0.00041095,120]
[367011351,1750617988887,-1235.29,0.00041095,120]
[367011352,1750617988913,-617.96,0.00041095,120]
[367011353,1750617988940,-1973.36,0.00041095,120]
[367011354,1750617988970,-6625.53,0.00041095,120]
[367011355,1750617988997,-974.14,0.00041095,120]
[367011356,1750617989026,-1476.17,0.00041095,120]
[367011357,1750617989053,-184.9150582,0.00041095,120]
[367011358,1750617989080,-738.47,0.00041095,120]
[367011359,1750617989107,-3780.91,0.00041095,120]
[367011360,1750617989134,-598.15375503,0.00041095,30]
[367011361,1750617989161,-604.97,0.00041095,120]
[367011362,1750617989189,-799.12,0.00041095,120]
[367011363,1750617989217,-4233.48,0.00041095,120]
[367011364,1750617989246,-4336.0,0.00041096,30]
[367011365,1750617989274,-200.0,0.00041096,30]
[367011366,1750617989304,-1023761.58764862,0.0004118,120]
[367011367,1750617989332,-462.05,0.00041188,30]
[367011368,1750617989361,-462.05,0.00041188,30]
[367011369,1750617989389,-798.25,0.00041188,30]
[367011370,1750617989416,-462.05,0.00041188,30]
[367011371,1750617989443,-462.05,0.00041188,30]
[367011372,1750617989475,-798.25,0.00041188,30]
[367011373,1750617989504,-462.05,0.00041188,30]
[367011374,1750617989533,-798.25,0.00041188,30]
[367011375,1750617989562,-798.25,0.00041188,30]
[367011376,1750617989589,-798.25,0.00041188,30]
[367011377,1750617989616,-1596.5,0.00041188,30]
[367011378,1750617989644,-798.25,0.00041194,30]
[367011379,1750617989671,-798.25,0.00041194,30]
[367011380,1750617989698,-967.38,0.00041194,30]
[367011381,1750617989725,-798.25,0.00041194,30]
[367011382,1750617989752,-798.25,0.00041194,30]
[367011383,1750617989781,-1596.5,0.00041194,30]
[367011384,1750617989808,-798.25,0.00041196,30]
[367011385,1750617989835,-173.0,0.000412,120]
[367011386,1750617989862,-935.0,0.00041206,120]
[367011387,1750617989890,-500.0,0.00041206,120]
[367011388,1750617989916,-943.0,0.00041206,120]
[367011389,1750617989942,-935.0,0.00041233,120]
[367011390,1750617989968,-500.0,0.00041233,120]
[367011391,1750617989995,-943.0,0.00041233,120]
[367011392,1750617990022,-12500.0,0.0004125,120]
[367011393,1750617990048,-935.0,0.0004126,120]
[367011394,1750617990075,-639.12442911,0.0004126,120]
[367011395,1750617990101,-943.0,0.0004126,120]
[367011396,1750617990127,-935.0,0.00041288,120]
[367011397,1750617990154,-943.0,0.00041288,120]
[367011398,1750617990179,-1068.50722,0.00041288,30]
[367011399,1750617990205,-935.0,0.00041315,120]
[367011400,1750617990232,-943.0,0.00041315,120]
[367011401,1750617990258,-935.0,0.00041343,120]
[367011402,1750617990284,-943.0,0.00041343,120]
[367011403,1750617990310,-3012.53338723,0.0004135,100]
[367011404,1750617990336,-207.0,0.0004136,30]
[367011405,1750617990361,-200.0,0.00041368,120]
[367011406,1750617990388,-490.0,0.00041369,120]
[367011407,1750617990413,-1080.0,0.00041369,30]
[367011408,1750617990441,-16485.72,0.00041369,120]
[367011409,1750617990472,-1080.0,0.00041369,30]
[367011410,1750617990500,-1546.167924,0.00041369,120]
[367011411,1750617990529,-151.685901,0.00041369,120]
[367011412,1750617990559,-3709.237641,0.00041369,120]
[367011413,1750617990588,-176.630363,0.00041369,120]
[367011414,1750617990616,-562.75,0.00041369,120]
[367011415,1750617990927,-656.11,0.00041369,120]
[367011416,1750617990955,-888.6,0.00041369,120]
[367011417,1750617990982,-1203.39,0.00041369,120]
[367011418,1750617991008,-490.0,0.00041369,120]
[367011419,1750617991034,-670.26,0.00041369,120]
[367011420,1750617991059,-8220.607738,0.00041369,120]
[367011421,1750617991085,-817.51,0.00041369,120]
[367011422,1750617991111,-699.53,0.00041369,120]
[367011423,1750617991136,-940.62,0.00041369,30]
[367011424,1750617991161,-512.07,0.00041369,120]
[367011425,1750617991187,-888.17,0.00041369,120]
[367011426,1750617991213,-1188.78,0.00041369,120]
[367011427,1750617991239,-1208.56,0.00041369,120]
[367011428,1750617991265,-516.34,0.00041369,120]
[367011429,1750617991295,-176.630364,0.00041369,120]
[367011430,1750617991320,-373.663988,0.00041369,120]
[367011431,1750617991347,-1057.34,0.00041369,120]
[367011432,1750617991373,-937.69,0.00041369,120]
[367011433,1750617991398,-554.3,0.00041369,120]
[367011434,1750617991424,-937.5,0.00041369,120]
[367011435,1750617991454,-582.85,0.00041369,120]
[367011436,1750617991480,-1251.91,0.00041369,120]
[367011437,1750617991509,-913.81,0.00041369,120]
[367011438,1750617991539,-573.69,0.00041369,120]
[367011439,1750617991566,-519.3,0.00041369,120]
[367011440,1750617991592,-696.79,0.00041369,120]
[367011441,1750617991619,-649.0,0.00041369,120]
[367011442,1750617991644,-1947.15,0.00041369,120]
[367011443,1750617991671,-643.07,0.00041369,120]
[367011444,1750617991698,-150.574571,0.00041369,120]
[367011445,1750617991724,-674.38,0.00041369,120]
[367011446,1750617991751,-1732.58,0.00041369,120]
[367011447,1750617991777,-1301.68,0.00041369,120]
[367011448,1750617991804,-1703.66,0.00041369,120]
[367011449,1750617991830,-1138.32,0.00041369,120]
[367011450,1750617991856,-490.0,0.00041369,120]
[367011451,1750617991882,-535.24,0.00041369,120]
[367011452,1750617991907,-1256.44,0.00041369,120]
[367011453,1750617991932,-656.93,0.00041369,120]
[367011454,1750617991957,-1702.63,0.00041369,120]
[367011455,1750617991983,-769.06,0.00041369,120]
[367011456,1750617992008,-896.61,0.00041369,120]
[367011457,1750617992035,-490.0,0.00041369,120]
[367011458,1750617992061,-1108.87,0.00041369,120]
[367011459,1750617992086,-757.66,0.00041369,120]
[367011460,1750617992112,-654.76,0.00041369,120]
[367011461,1750617992139,-490.0,0.00041369,120]
[367011462,1750617992166,-1103.6,0.00041369,120]
[367011463,1750617992193,-2242.79,0.00041369,120]
[367011464,1750617992220,-1008.17,0.00041369,120]
[367011465,1750617992249,-1003.86,0.00041369,120]
[367011466,1750617992277,-490.0,0.00041369,120]
[367011467,1750617992305,-1116.35,0.00041369,120]
[367011468,1750617992333,-1808.91,0.00041369,120]
[367011469,1750617992360,-497.21,0.00041369,120]
[367011470,1750617992387,-832.77,0.00041369,120]
[367011471,1750617992412,-490.62,0.00041369,120]
[367011472,1750617992441,-828.36,0.00041369,120]
[367011473,1750617992471,-1251.26,0.00041369,120]
[367011474,1750617992499,-626.26,0.00041369,120]
[367011475,1750617992528,-744.1,0.00041369,120]
[367011476,1750617992556,-543.46,0.00041369,60]
[367011477,1750617992584,-2052.94,0.00041369,120]
[367011478,1750617992611,-861.9,0.00041369,120]
[367011479,1750617992638,-1263.01,0.00041369,120]
[367011480,1750617992666,-1298.39,0.00041369,120]
[367011481,1750617992692,-1514.53,0.00041369,120]
[367011482,1750617992720,-846.73,0.00041369,120]
[367011483,1750617992747,-1687.99,0.00041369,120]
[367011484,1750617992776,-620.32,0.00041369,120]
[367011485,1750617992803,-3009.11,0.00041369,120]
[367011486,1750617992829,-1325.89,0.00041369,120]
[367011487,1750617992855,-891.88,0.00041369,120]
[367011488,1750617992882,-490.0,0.00041369,120]
[367011489,1750617992908,-640.48,0.00041369,120]
[367011490,1750617992934,-1042.11,0.00041369,120]
[367011491,1750617992961,-927.14,0.00041369,120]
[367011492,1750617992988,-1774.41,0.00041369,120]
[367011493,1750617993016,-742.66,0.00041369,120]
[367011494,1750617993044,-805.81,0.00041369,120]
[367011495,1750617993072,-1708.01,0.00041369,120]
[367011496,1750617993099,-155.85234847,0.00041369,120]
[367011497,1750617993125,-824.15,0.00041369,120]
[367011498,1750617993152,-2200.63,0.00041369,120]
[367011499,1750617993178,-1751.88,0.00041369,120]
[367011500,1750617993206,-878.92,0.00041369,120]
[367011501,1750617993232,-1377.73,0.00041369,120]
[367011502,1750617993260,-528.3,0.00041369,120]
[367011503,1750617993287,-1137.65,0.00041369,120]
[367011504,1750617993315,-1119.85,0.00041369,120]